fUSD/lending_fUSD_20240224
["ID","MTS","AMOUNT","RATE_DAILY","PERIOD"]
[315095470,1708810308541,-151.99310252,0.00029391,2]
[315095471,1708810308551,-304.0,0.000294,18]
[315095472,1708810308561,-157.74609516,0.00029405,2]
[315095473,1708810308570,-201.0,0.00029415,11]
[315095474,1708810308580,-1541.43165216,0.00029482,2]
[315095475,1708810308589,-157.57673583,0.00029489,2]
[315095476,1708810308599,-157.57673583,0.00029489,2]
[315095477,1708810308608,-157.57673583,0.00029489,2]
[315095478,1708810308618,-157.57673583,0.00029489,2]
[315095479,1708810308628,-157.57673583,0.00029489,2]
[315095480,1708810308637,-157.57673583,0.00029489,2]
[315095481,1708810308647,-157.57,0.00029489,2]
[315095482,1708810308656,-294.45,0.00029489,2]
[315095483,1708810308666,-153.69095482,0.00029489,2]
[315095484,1708810308675,-153.69095482,0.00029489,2]
[315095485,1708810308685,-153.69,0.00029489,2]
[315095486,1708810308695,-185.01,0.00029489,2]
[315095487,1708810308704,-428.67855897,0.00029489,2]
[315095488,1708810308713,-428.67855897,0.00029489,2]
[315095489,1708810308722,-428.67855897,0.00029489,2]
[315095490,1708810308731,-428.67855897,0.00029489,2]
[315095491,1708810308741,-428.67855897,0.00029489,2]
[315095492,1708810308750,-428.67855897,0.00029489,2]
[315095493,1708810308759,-428.67855897,0.00029489,2]
[315095494,1708810308768,-428.67855897,0.00029489,2]
[315095495,1708810308777,-428.67855897,0.00029489,2]
[315095496,1708810308786,-428.67855897,0.00029489,2]
[315095497,1708810308795,-428.67855897,0.00029489,2]
[315095498,1708810308804,-428.67855897,0.00029489,2]
[315095499,1708810308813,-428.67855897,0.00029489,2]
[315095500,1708810308823,-428.67855897,0.00029489,2]
[315095501,1708810308831,-428.67855897,0.00029489,2]
[315095502,1708810308841,-428.67855897,0.00029489,2]
[315095503,1708810308850,-428.67855897,0.00029489,2]
[315095504,1708810308860,-428.67855897,0.00029489,2]
[315095505,1708810308877,-428.67855897,0.00029489,2]
[315095506,1708810308886,-428.67,0.00029489,2]
[315095507,1708810308895,-339.57,0.00029496,2]
[315095508,1708810308904,-151.022506,0.00029498,2]
[315095509,1708810308913,-151.022506,0.00029498,2]
[315095510,1708810308923,-151.022506,0.00029498,2]
[315095511,1708810308932,-151.022506,0.00029498,2]
[315095512,1708810308941,-151.022506,0.00029498,2]
[315095513,1708810308950,-151.022506,0.00029498,2]
[315095514,1708810308959,-151.022506,0.00029498,2]
[315095515,1708810308971,-151.022506,0.00029498,2]
[315095516,1708810308981,-151.022506,0.00029498,2]
[315095517,1708810308990,-151.022506,0.00029498,2]
[315095518,1708810308999,-438.71132064,0.000295,3]
[315095519,1708810309008,-150.0,0.00029569,2]
[315095520,1708810309017,-514.46881291,0.00029589,2]
[315095521,1708810309027,-500.0,0.00029589,2]
[315095522,1708810309036,-500.0,0.00029589,2]
[315095523,1708810309045,-500.0,0.00029589,2]
[315095524,1708810309054,-500.0,0.00029589,2]
[315095525,1708810309063,-500.0,0.00029589,2]
[315095526,1708810309072,-500.0,0.00029589,2]
[315095527,1708810309081,-500.0,0.00029589,2]
[315095528,1708810309090,-548.88676155,0.00029589,2]
[315095529,1708810309100,-521.871705,0.00029589,2]
[315095530,1708810309109,-500.0,0.00029589,2]
[315095531,1708810309119,-500.0,0.00029589,2]
[315095532,1708810309128,-500.0,0.00029589,2]
[315095533,1708810309137,-157.91855802,0.00029589,2]
[315095534,1708810309147,-500.0,0.00029589,2]
[315095535,1708810309156,-500.0,0.00029589,2]
[315095536,1708810309165,-500.0,0.00029589,2]
[315095537,1708810309174,-500.0,0.00029589,2]
[315095538,1708810309183,-500.0,0.00029589,2]
[315095539,1708810309193,-500.0,0.00029589,2]
[315095540,1708810309202,-500.0,0.00029589,2]
[315095541,1708810309214,-545.83,0.00029589,2]
[315095542,1708810309225,-500.0,0.00029589,2]
[315095543,1708810309235,-500.0,0.00029589,2]
[315095544,1708810309244,-500.0,0.00029589,2]
[315095545,1708810309254,-500.0,0.00029589,2]
[315095546,1708810309263,-500.0,0.00029589,2]
[315095547,1708810309272,-500.0,0.00029589,2]
[315095548,1708810309281,-500.0,0.00029589,2]
[315095549,1708810309293,-597.46582885,0.00029589,2]
[315095550,1708810309302,-511.15863616,0.00029589,2]
[315095551,1708810309312,-528.87862166,0.00029589,2]
[315095552,1708810309321,-500.0,0.00029589,2]
[315095553,1708810309330,-500.0,0.00029589,2]
[315095554,1708810309339,-500.0,0.00029589,2]
[315095555,1708810309349,-500.0,0.00029589,2]
[315095556,1708810309358,-500.0,0.00029589,2]
[315095557,1708810309367,-184.78750267,0.00029589,2]
[315095558,1708810309376,-500.0,0.00029589,2]
[315095559,1708810309385,-500.0,0.00029589,2]
[315095560,1708810309394,-595.95,0.00029589,2]
[315095561,1708810309404,-500.0,0.00029589,2]
[315095562,1708810309413,-500.0,0.00029589,2]
[315095563,1708810309422,-500.0,0.00029589,2]
[315095564,1708810309431,-500.0,0.00029589,2]
[315095565,1708810309440,-500.0,0.00029589,2]
[315095566,1708810309450,-533.74,0.00029589,2]
[315095567,1708810309459,-500.0,0.00029589,2]
[315095568,1708810309468,-500.0,0.00029589,2]
[315095569,1708810309478,-500.0,0.00029589,2]
[315095570,1708810309487,-500.0,0.00029589,2]
[315095571,1708810309497,-1377.86,0.00029589,2]
[315095572,1708810309506,-500.0,0.00029589,2]
[315095573,1708810309515,-500.0,0.00029589,2]
[315095574,1708810309525,-500.0,0.00029589,2]
[315095575,1708810309534,-500.0,0.00029589,2]
[315095576,1708810309543,-500.0,0.00029589,2]
[315095577,1708810309552,-500.0,0.00029589,2]
[315095578,1708810309561,-500.0,0.00029589,2]
[315095579,1708810309571,-500.0,0.00029589,2]
[315095580,1708810309581,-500.0,0.00029589,2]
[315095581,1708810309590,-500.0,0.00029589,2]
[315095582,1708810309598,-500.0,0.00029589,2]
[315095583,1708810309607,-500.0,0.00029589,2]
[315095584,1708810309617,-500.0,0.00029589,2]
[315095585,1708810309625,-500.0,0.00029589,2]
[315095586,1708810309635,-500.0,0.00029589,2]
[315095587,1708810309645,-500.0,0.00029589,2]
[315095588,1708810309654,-500.0,0.00029589,2]
[315095589,1708810309663,-563.43,0.00029589,2]
[315095590,1708810309673,-500.0,0.00029589,2]
[315095591,1708810309682,-500.0,0.00029589,2]
[315095592,1708810309692,-500.0,0.00029589,2]
[315095593,1708810309701,-499.24661326,0.00029589,2]
[315095594,1708810309712,-500.0,0.00029589,2]
[315095595,1708810309722,-500.0,0.00029589,2]
[315095596,1708810309732,-500.0,0.00029589,2]
[315095597,1708810309741,-522.32325017,0.00029589,2]
[315095598,1708810309751,-506.09,0.00029589,2]
[315095599,1708810309760,-500.0,0.00029589,2]
[315095600,1708810309770,-500.0,0.00029589,2]
[315095601,1708810309779,-500.0,0.00029589,2]
[315095602,1708810309788,-500.0,0.00029589,2]
[315095603,1708810309797,-500.0,0.00029589,2]
[315095604,1708810309807,-619.83,0.00029589,2]
[315095605,1708810309817,-500.0,0.00029589,2]
[315095606,1708810309826,-500.0,0.00029589,2]
[315095607,1708810309835,-500.0,0.00029589,2]
[315095608,1708810309845,-500.0,0.00029589,2]
[315095609,1708810309855,-500.0,0.00029589,2]
[315095610,1708810309864,-500.0,0.00029589,2]
[315095611,1708810309874,-500.0,0.00029589,2]
[315095612,1708810309883,-500.0,0.00029589,2]
[315095613,1708810309893,-500.0,0.00029589,2]
[315095614,1708810309902,-500.0,0.00029589,2]
[315095615,1708810309911,-500.0,0.00029589,2]
[315095616,1708810309921,-535.11,0.00029589,2]
[315095617,1708810309930,-500.0,0.00029589,2]
[315095618,1708810309939,-500.0,0.00029589,2]
[315095619,1708810309949,-500.0,0.00029589,2]
[315095620,1708810309958,-500.44,0.00029589,2]
[315095621,1708810309967,-500.0,0.00029589,2]
[315095622,1708810309976,-500.0,0.00029589,2]
[315095623,1708810309986,-500.0,0.00029589,2]
[315095624,1708810309995,-500.0,0.00029589,2]
[315095625,1708810310004,-500.0,0.00029589,2]
[315095626,1708810310014,-340.17430413,0.00029589,2]
[315095627,1708810310023,-500.0,0.00029589,2]
[315095628,1708810310033,-500.0,0.00029589,2]
[315095629,1708810310043,-720.75,0.00029589,2]
[315095630,1708810310053,-500.0,0.00029589,2]
[315095631,1708810310062,-500.0,0.00029589,2]
[315095632,1708810310072,-1156.62,0.00029589,2]
[315095633,1708810310082,-500.0,0.00029589,2]
[315095634,1708810310092,-510.16,0.00029589,2]
[315095635,1708810310101,-851.9,0.00029589,2]
[315095636,1708810310111,-500.0,0.00029589,2]
[315095637,1708810310120,-500.0,0.00029589,2]
[315095638,1708810310131,-500.0,0.00029589,2]
[315095639,1708810310140,-500.0,0.00029589,2]
[315095640,1708810310150,-675.27,0.00029589,2]
[315095641,1708810310160,-869.07,0.00029589,2]
[315095642,1708810310169,-665.27,0.00029589,2]
[315095643,1708810310180,-654.25,0.00029589,2]
[315095644,1708810310189,-500.0,0.00029589,2]
[315095645,1708810310199,-500.0,0.00029589,2]
[315095646,1708810310210,-500.0,0.00029589,2]
[315095647,1708810310222,-500.0,0.00029589,2]
[315095648,1708810310231,-500.0,0.00029589,2]
[315095649,1708810310240,-500.0,0.00029589,2]
[315095650,1708810310251,-500.0,0.00029589,2]
[315095651,1708810310261,-500.0,0.00029589,2]
[315095652,1708810310270,-500.0,0.00029589,2]
[315095653,1708810310280,-500.0,0.00029589,2]
[315095654,1708810310290,-500.0,0.00029589,2]
[315095655,1708810310300,-500.0,0.00029589,2]
[315095656,1708810310309,-500.0,0.00029589,2]
[315095657,1708810310319,-500.0,0.00029589,2]
[315095658,1708810310329,-500.0,0.00029589,2]
[315095659,1708810310338,-500.0,0.00029589,2]
[315095660,1708810310347,-500.0,0.00029589,2]
[315095661,1708810310356,-500.0,0.00029589,2]
[315095662,1708810310366,-500.0,0.00029589,2]
[315095663,1708810310375,-500.0,0.00029589,2]
[315095664,1708810310385,-500.0,0.00029589,2]
[315095665,1708810310395,-212.27526578,0.00029589,2]
[315095666,1708810310404,-500.0,0.00029589,2]
[315095667,1708810310413,-500.0,0.00029589,2]
[315095668,1708810310423,-548.36,0.00029589,2]
[315095669,1708810310432,-500.0,0.00029589,2]
[315095670,1708810310442,-500.0,0.00029589,2]
[315095671,1708810310451,-500.0,0.00029589,2]
[315095672,1708810310460,-500.0,0.00029589,2]
[315095673,1708810310470,-500.0,0.00029589,2]
[315095674,1708810310479,-614.13,0.00029589,2]
[315095675,1708810310489,-500.0,0.00029589,2]
[315095676,1708810310498,-500.0,0.00029589,2]
[315095677,1708810310508,-500.0,0.00029589,2]
[315095678,1708810310517,-500.0,0.00029589,2]
[315095679,1708810310527,-518.00165648,0.00029589,2]
[315095680,1708810310537,-500.0,0.00029589,2]
[315095681,1708810310546,-500.0,0.00029589,2]
[315095682,1708810310556,-585.45,0.00029589,2]
[315095683,1708810310565,-1917.18,0.00029589,2]
[315095684,1708810310574,-500.0,0.00029589,2]
[315095685,1708810310584,-500.0,0.00029589,2]
[315095686,1708810310593,-500.0,0.00029589,2]
[315095687,1708810310602,-500.0,0.00029589,2]
[315095688,1708810310612,-349.1863943,0.00029589,2]
[315095689,1708810310622,-500.0,0.00029589,2]
[315095690,1708810310631,-717.49,0.00029589,2]
[315095691,1708810310641,-507.49,0.00029589,2]
[315095692,1708810310651,-500.0,0.00029589,2]
[315095693,1708810310660,-507.97468525,0.00029589,2]
[315095694,1708810310669,-500.0,0.00029589,2]
[315095695,1708810310678,-500.0,0.00029589,2]
[315095696,1708810310689,-533.35,0.00029589,2]
[315095697,1708810310698,-500.0,0.00029589,2]
[315095698,1708810310708,-150.19362605,0.00029589,2]
[315095699,1708810310718,-655.31,0.00029589,2]
[315095700,1708810310727,-500.0,0.00029589,2]
[315095701,1708810310737,-528.13,0.00029589,2]
[315095702,1708810310746,-500.0,0.00029589,2]
[315095703,1708810310755,-500.0,0.00029589,2]
[315095704,1708810310764,-500.0,0.00029589,2]
[315095705,1708810310773,-500.0,0.00029589,2]
[315095706,1708810310782,-634.67598072,0.00029589,2]
[315095707,1708810310791,-500.0,0.00029589,2]
[315095708,1708810310800,-556.62,0.00029589,2]
[315095709,1708810310810,-500.0,0.00029589,2]
[315095710,1708810310819,-500.0,0.00029589,2]
[315095711,1708810310828,-500.0,0.00029589,2]
[315095712,1708810310837,-500.0,0.00029589,2]
[315095713,1708810310846,-585.67,0.00029589,2]
[315095714,1708810310855,-510.71681652,0.00029589,2]
[315095715,1708810310865,-500.0,0.00029589,2]
[315095716,1708810310874,-500.0,0.00029589,2]
[315095717,1708810310883,-500.0,0.00029589,2]
[315095718,1708810310892,-500.0,0.00029589,2]
[315095719,1708810310902,-500.0,0.00029589,2]
[315095720,1708810310912,-500.0,0.00029589,2]
[315095721,1708810310922,-500.0,0.00029589,2]
[315095722,1708810310932,-500.0,0.00029589,2]
[315095723,1708810310941,-500.0,0.00029589,2]
[315095724,1708810310951,-500.0,0.00029589,2]
[315095725,1708810310961,-500.0,0.00029589,2]
[315095726,1708810310970,-500.0,0.00029589,2]
[315095727,1708810310979,-500.0,0.00029589,2]
[315095728,1708810310988,-540.25,0.00029589,2]
[315095729,1708810310997,-500.0,0.00029589,2]
[315095730,1708810311006,-500.0,0.00029589,2]
[315095731,1708810311017,-500.0,0.00029589,2]
[315095732,1708810311026,-500.0,0.00029589,2]
[315095733,1708810311035,-500.0,0.00029589,2]
[315095734,1708810311045,-500.0,0.00029589,2]
[315095735,1708810311054,-325.48385829,0.00029589,2]
[315095736,1708810311063,-2052.74,0.00029589,2]
[315095737,1708810311073,-538.32,0.00029589,2]
[315095738,1708810311082,-500.0,0.00029589,2]
[315095739,1708810311092,-500.0,0.00029589,2]
[315095740,1708810311101,-500.0,0.00029589,2]
[315095741,1708810311110,-500.0,0.00029589,2]
[315095742,1708810311120,-500.0,0.00029589,2]
[315095743,1708810311129,-500.0,0.00029589,2]
[315095744,1708810311139,-500.0,0.00029589,2]
[315095745,1708810311149,-500.0,0.00029589,2]
[315095746,1708810311158,-500.0,0.00029589,2]
[315095747,1708810311168,-500.0,0.00029589,2]
[315095748,1708810311177,-500.0,0.00029589,2]
[315095749,1708810311187,-521.91040958,0.00029589,2]
[315095750,1708810311198,-500.0,0.00029589,2]
[315095751,1708810311211,-500.0,0.00029589,2]
[315095752,1708810311223,-500.0,0.00029589,2]
[315095753,1708810311233,-500.0,0.00029589,2]
[315095754,1708810311242,-500.0,0.00029589,2]
[315095755,1708810311253,-500.0,0.00029589,2]
[315095756,1708810311263,-500.0,0.00029589,2]
[315095757,1708810311272,-551.41285287,0.00029589,2]
[315095758,1708810311282,-500.0,0.00029589,2]
[315095759,1708810311295,-500.0,0.00029589,2]
[315095760,1708810311305,-500.0,0.00029589,2]
[315095761,1708810311314,-500.0,0.00029589,2]
[315095762,1708810311323,-500.0,0.00029589,2]
[315095763,1708810311333,-500.0,0.00029589,2]
[315095764,1708810311342,-500.0,0.00029589,2]
[315095765,1708810311352,-500.0,0.00029589,2]
[315095766,1708810311362,-786.79,0.00029589,2]
[315095767,1708810311371,-500.0,0.00029589,2]
[315095768,1708810311381,-500.0,0.00029589,2]
[315095769,1708810311390,-500.0,0.00029589,2]
[315095770,1708810311401,-500.0,0.00029589,2]
[315095771,1708810311411,-496.96908879,0.00029589,2]
[315095772,1708810311421,-500.0,0.00029589,2]
[315095773,1708810311431,-500.0,0.00029589,2]
[315095774,1708810311440,-627.35,0.00029589,2]
[315095775,1708810311450,-500.0,0.00029589,2]
[315095776,1708810311459,-500.0,0.00029589,2]
[315095777,1708810311469,-539.6,0.00029589,2]
[315095778,1708810311479,-500.0,0.00029589,2]
[315095779,1708810311488,-500.0,0.00029589,2]
[315095780,1708810311498,-500.0,0.00029589,2]
[315095781,1708810311509,-500.0,0.00029589,2]
[315095782,1708810311519,-500.0,0.00029589,2]
[315095783,1708810311528,-500.0,0.00029589,2]
[315095784,1708810311538,-500.0,0.00029589,2]
[315095785,1708810311548,-500.0,0.00029589,2]
[315095786,1708810311557,-500.0,0.00029589,2]
[315095787,1708810311567,-500.0,0.00029589,2]
[315095788,1708810311578,-500.0,0.00029589,2]
[315095789,1708810311588,-370.88058139,0.00029589,2]
[315095790,1708810311597,-500.0,0.00029589,2]
[315095791,1708810311607,-500.0,0.00029589,2]
[315095792,1708810311617,-484.45725484,0.00029589,2]
[315095793,1708810311627,-500.0,0.00029589,2]
[315095794,1708810311637,-500.0,0.00029589,2]
[315095795,1708810311646,-552.18997225,0.00029589,2]
[315095796,1708810311656,-500.0,0.00029589,2]
[315095797,1708810311665,-500.0,0.00029589,2]
[315095798,1708810311675,-500.0,0.00029589,2]
[315095799,1708810311685,-500.0,0.00029589,2]
[315095800,1708810311694,-500.0,0.00029589,2]
[315095801,1708810311703,-500.0,0.00029589,2]
[315095802,1708810311712,-500.0,0.00029589,2]
[315095803,1708810311722,-521.65,0.00029589,2]
[315095804,1708810311731,-500.0,0.00029589,2]
[315095805,1708810311740,-565.13709942,0.00029589,2]
[315095806,1708810311749,-168.28322121,0.00029589,2]
[315095807,1708810311758,-500.0,0.00029589,2]
[315095808,1708810311767,-500.0,0.00029589,2]
[315095809,1708810311776,-500.0,0.00029589,2]
[315095810,1708810311786,-574.83,0.00029589,2]
[315095811,1708810311795,-500.0,0.00029589,2]
[315095812,1708810311804,-1865.83,0.00029589,2]
[315095813,1708810311813,-150.0,0.00029589,2]
[315095814,1708810311823,-719.34,0.00029589,2]
[315095815,1708810311832,-500.0,0.00029589,2]
[315095816,1708810311841,-500.0,0.00029589,2]
[315095817,1708810311851,-1620.46,0.00029589,2]
[315095818,1708810311860,-500.0,0.00029589,2]
[315095819,1708810311870,-500.0,0.00029589,2]
[315095820,1708810311879,-500.0,0.00029589,2]
[315095821,1708810311888,-589.1,0.00029589,2]
[315095822,1708810311898,-1249.24,0.00029589,2]
[315095823,1708810311907,-500.0,0.00029589,2]
[315095824,1708810311917,-4137.04,0.00029589,2]
[315095825,1708810311926,-500.0,0.00029589,2]
[315095826,1708810311936,-1988.0,0.00029589,2]
[315095827,1708810311946,-500.0,0.00029589,2]
[315095828,1708810311956,-1254.4,0.00029589,2]
[315095829,1708810311965,-967.56,0.00029589,2]
[315095830,1708810311974,-500.0,0.00029589,2]
[315095831,1708810311984,-965.13,0.00029589,2]
[315095832,1708810311993,-500.0,0.00029589,2]
[315095833,1708810312002,-3191.17,0.00029589,2]
[315095834,1708810312011,-500.0,0.00029589,2]
[315095835,1708810312021,-1128.66,0.00029589,2]
[315095836,1708810312033,-909.75,0.00029589,2]
[315095837,1708810312042,-500.0,0.00029589,2]
[315095838,1708810312051,-552.39,0.00029589,2]
[315095839,1708810312060,-593.85,0.00029589,2]
[315095840,1708810312070,-1113.17,0.00029589,2]
[315095841,1708810312079,-500.0,0.00029589,2]
[315095842,1708810312091,-4045.8,0.00029589,2]
[315095843,1708810312104,-1077.57,0.00029589,2]
[315095844,1708810312113,-500.0,0.00029589,2]
[315095845,1708810312121,-500.0,0.00029589,2]
[315095846,1708810312211,-500.0,0.00029589,2]
[315095847,1708810312252,-500.0,0.00029589,2]
[315095848,1708810312263,-500.0,0.00029589,2]
[315095849,1708810312272,-3078.01,0.00029589,2]
[315095850,1708810312287,-3378.46,0.00029589,2]
[315095851,1708810312299,-4414.52,0.00029589,2]
[315095852,1708810312309,-500.0,0.00029589,2]
[315095853,1708810312319,-3626.76,0.00029589,2]
[315095854,1708810312329,-500.0,0.00029589,2]
[315095855,1708810312338,-3257.12,0.00029589,2]
[315095856,1708810312348,-500.0,0.00029589,2]
[315095857,1708810312358,-624.45,0.00029589,2]
[315095858,1708810312368,-539.18,0.00029589,2]
[315095859,1708810312377,-748.17,0.00029589,2]
[315095860,1708810312388,-5146.88,0.00029589,2]
[315095861,1708810312398,-500.0,0.00029589,2]
[315095862,1708810312408,-1570.48,0.00029589,2]
[315095863,1708810312418,-500.0,0.00029589,2]
[315095864,1708810312428,-500.0,0.00029589,2]
[315095865,1708810312438,-500.0,0.00029589,2]
[315095866,1708810312448,-500.0,0.00029589,2]
[315095867,1708810312458,-500.0,0.00029589,2]
[315095868,1708810312468,-500.0,0.00029589,2]
[315095869,1708810312479,-741.74,0.00029589,2]
[315095870,1708810312490,-500.0,0.00029589,2]
[315095871,1708810312500,-500.0,0.00029589,2]
[315095872,1708810312510,-500.0,0.00029589,2]
[315095873,1708810312520,-500.0,0.00029589,2]
[315095874,1708810312530,-720.57,0.00029589,2]
[315095875,1708810312540,-3824.68,0.00029589,2]
[315095876,1708810312549,-639.91445202,0.00029589,2]
[315095877,1708810312560,-554.42409077,0.00029589,2]
[315095878,1708810312570,-993.01,0.00029589,2]
[315095879,1708810312580,-500.0,0.00029589,2]
[315095880,1708810312591,-500.0,0.00029589,2]
[315095881,1708810312600,-500.0,0.00029589,2]
[315095882,1708810312610,-862.0,0.00029589,2]
[315095883,1708810312619,-962.36,0.00029589,2]
[315095884,1708810312629,-500.0,0.00029589,2]
[315095885,1708810312638,-339.55,0.00029589,2]
[315095886,1708810312648,-677.57,0.00029589,2]
[315095887,1708810312657,-500.0,0.00029589,2]
[315095888,1708810312667,-1493.01,0.00029589,2]
[315095889,1708810312677,-661.48,0.00029589,2]
[315095890,1708810312687,-1197.16,0.00029589,2]
[315095891,1708810312697,-500.0,0.00029589,2]
[315095892,1708810312706,-500.0,0.00029589,2]
[315095893,1708810312716,-500.0,0.00029589,2]
[315095894,1708810312725,-500.0,0.00029589,2]
[315095895,1708810312735,-643.15,0.00029589,2]
[315095896,1708810312745,-1193.59,0.00029589,2]
[315095897,1708810312754,-1266.86,0.00029589,2]
[315095898,1708810312764,-624.93,0.00029589,2]
[315095899,1708810312773,-500.0,0.00029589,2]
[315095900,1708810312783,-610.59,0.00029589,2]
[315095901,1708810312792,-500.0,0.00029589,2]
[315095902,1708810312801,-500.0,0.00029589,2]
[315095903,1708810312811,-650.57,0.00029589,2]
[315095904,1708810312820,-617.61,0.00029589,2]
[315095905,1708810312829,-785.98,0.00029589,2]
[315095906,1708810312838,-688.7,0.00029589,2]
[315095907,1708810312848,-500.0,0.00029589,2]
[315095908,1708810312858,-3270.7,0.00029589,2]
[315095909,1708810312867,-509.37,0.00029589,2]
[315095910,1708810312877,-257.48153444,0.00029589,2]
[315095911,1708810312887,-500.0,0.00029589,2]
[315095912,1708810312896,-6318.14,0.00029589,2]
[315095913,1708810312905,-1746.14,0.00029589,2]
[315095914,1708810312915,-500.0,0.00029589,2]
[315095915,1708810312926,-500.0,0.00029589,2]
[315095916,1708810312936,-500.0,0.00029589,2]
[315095917,1708810312946,-500.0,0.00029589,2]
[315095918,1708810312956,-500.0,0.00029589,2]
[315095919,1708810312966,-500.0,0.00029589,2]
[315095920,1708810312976,-755.98,0.00029589,2]
[315095921,1708810312986,-562.19,0.00029589,2]
[315095922,1708810312996,-500.0,0.00029589,2]
[315095923,1708810313009,-898.07,0.00029589,2]
[315095924,1708810313020,-630.58,0.00029589,2]
[315095925,1708810313031,-500.0,0.00029589,2]
[315095926,1708810313040,-557.45,0.00029589,2]
[315095927,1708810313050,-637.87,0.00029589,2]
[315095928,1708810313059,-500.0,0.00029589,2]
[315095929,1708810313068,-668.5,0.00029589,2]
[315095930,1708810313077,-500.0,0.00029589,2]
[315095931,1708810313087,-500.0,0.00029589,2]
[315095932,1708810313097,-509.26,0.00029589,2]
[315095933,1708810313107,-669.18,0.00029589,2]
[315095934,1708810313117,-1377.18,0.00029589,2]
[315095935,1708810313127,-500.0,0.00029589,2]
[315095936,1708810313137,-1798.49,0.00029589,2]
[315095937,1708810313147,-1649.33,0.00029589,2]
[315095938,1708810313157,-574.79,0.00029589,2]
[315095939,1708810313167,-500.0,0.00029589,2]
[315095940,1708810313176,-500.0,0.00029589,2]
[315095941,1708810313186,-667.98,0.00029589,2]
[315095942,1708810313196,-500.0,0.00029589,2]
[315095943,1708810313206,-500.0,0.00029589,2]
[315095944,1708810313219,-568.06,0.00029589,2]
[315095945,1708810313229,-500.0,0.00029589,2]
[315095946,1708810313238,-500.0,0.00029589,2]
[315095947,1708810313248,-1086.98,0.00029589,2]
[315095948,1708810313259,-1024.22,0.00029589,2]
[315095949,1708810313269,-754.1,0.00029589,2]
[315095950,1708810313278,-1911.86,0.00029589,2]
[315095951,1708810313289,-500.0,0.00029589,2]
[315095952,1708810313300,-500.0,0.00029589,2]
[315095953,1708810313309,-1211.44,0.00029589,2]
[315095954,1708810313319,-500.0,0.00029589,2]
[315095955,1708810313329,-500.0,0.00029589,2]
[315095956,1708810313339,-2683.79,0.00029589,2]
[315095957,1708810313349,-763.44,0.00029589,2]
[315095958,1708810313360,-761.74,0.00029589,2]
[315095959,1708810313370,-500.0,0.00029589,2]
[315095960,1708810313380,-500.0,0.00029589,2]
[315095961,1708810313390,-387.74,0.00029589,2]
[315095962,1708810313400,-3791.77,0.00029589,2]
[315095963,1708810313410,-500.0,0.00029589,2]
[315095964,1708810313419,-500.0,0.00029589,2]
[315095965,1708810313429,-558.0,0.00029589,2]
[315095966,1708810313438,-656.92,0.00029589,2]
[315095967,1708810313448,-500.0,0.00029589,2]
[315095968,1708810313458,-650.49,0.00029589,2]
[315095969,1708810313467,-10336.27,0.00029589,2]